[Event "Titled Tuesday Blitz October 19 2021"]
[White "Weetik, Vjacheslav"]
[Black "Padmini, Rout"]
[WhiteFideId "4153472"]
[BlackFideId "5029295"]
[WhiteElo "2469"]
[BlackElo "2196"]
[Result "1-0"]
[Round "11"]
[TimeControl "180+1"]
[Date "2021.10.19"]
[WhiteClock "0:00:04"]
[BlackClock "0:00:04"]

1. d4 {[%clk 0:02:58]}  Nf6 {[%clk 0:02:59]} 2. Bf4 {[%clk 0:02:58]}  d5 {[%clk 0:02:59]} 3. e3 {[%clk 0:02:58]}  c5 {[%clk 0:02:58]} 4. c3 {[%clk 0:02:58]}  e6 {[%clk 0:02:57]} 5. Nd2 {[%clk 0:02:58]}  Nc6 {[%clk 0:02:57]} 6. Bd3 {[%clk 0:02:58]}  Bd6 {[%clk 0:02:55]} 7. Bxd6 {[%clk 0:02:58]}  Qxd6 {[%clk 0:02:55]} 8. f4 {[%clk 0:02:59]}  b6 {[%clk 0:02:55]} 9. Ngf3 {[%clk 0:02:58]}  Bb7 {[%clk 0:02:55]} 10. O-O {[%clk 0:02:52]}  cxd4 {[%clk 0:02:53]} 11. exd4 {[%clk 0:02:48]}  Qxf4 {[%clk 0:02:49]} 12. Qe2 {[%clk 0:02:43]}  Qc7 {[%clk 0:02:43]} 13. Ne5 {[%clk 0:02:39]}  O-O-O {[%clk 0:02:43]} 14. Ndf3 {[%clk 0:02:31]}  Ne4 {[%clk 0:02:34]} 15. a4 {[%clk 0:01:33]}  f6 {[%clk 0:02:06]} 16. Nxc6 {[%clk 0:01:32]}  Qxc6 {[%clk 0:02:06]} 17. a5 {[%clk 0:01:32]}  Kc7 {[%clk 0:02:04]} 18. c4 {[%clk 0:01:08]}  dxc4 {[%clk 0:02:00]} 19. Rfc1 {[%clk 0:01:05]}  b5 {[%clk 0:02:00]} 20. Bxc4 {[%clk 0:01:03]}  bxc4 {[%clk 0:01:54]} 21. Rxc4 {[%clk 0:01:02]}  Kb8 {[%clk 0:01:38]} 22. Rxc6 {[%clk 0:01:01]}  Bxc6 {[%clk 0:01:39]} 23. a6 {[%clk 0:00:46]}  Rc8 {[%clk 0:01:36]} 24. Rc1 {[%clk 0:00:43]}  Bd5 {[%clk 0:01:34]} 25. Qb5+ {[%clk 0:00:41]}  Ka8 {[%clk 0:01:34]} 26. Rxc8+ {[%clk 0:00:36]}  Rxc8 {[%clk 0:01:35]} 27. h3 {[%clk 0:00:35]}  Nd6 {[%clk 0:01:14]} 28. Qd7 {[%clk 0:00:33]}  Rc6 {[%clk 0:00:58]} 29. Qd8+ {[%clk 0:00:26]}  Nc8 {[%clk 0:00:58]} 30. b4 {[%clk 0:00:23]}  Kb8 {[%clk 0:00:50]} 31. Ne1 {[%clk 0:00:20]}  Bc4 {[%clk 0:00:37]} 32. Qf8 {[%clk 0:00:15]}  Rc7 {[%clk 0:00:34]} 33. b5 {[%clk 0:00:10]}  Rd7 {[%clk 0:00:25]} 34. Qb4 {[%clk 0:00:08]}  Nb6 {[%clk 0:00:20]} 35. Nc2 {[%clk 0:00:07]}  Rd5 {[%clk 0:00:16]} 36. Ne3 {[%clk 0:00:06]}  Rxd4 {[%clk 0:00:11]} 37. Qf8+ {[%clk 0:00:06]}  Nc8 {[%clk 0:00:11]} 38. Qxg7 {[%clk 0:00:05]}  Nd6 {[%clk 0:00:05]} 39. Qxf6 {[%clk 0:00:05]}  Re4 {[%clk 0:00:03]} 40. Qf8+ {[%clk 0:00:04]}  Kc7 {[%clk 0:00:04]} 41. Qe7+ {[%clk 0:00:04]} 1-0


[Site "https://www.chess.com"]

[Event "Titled Tuesday Blitz October 19 2021"]
[White "Zubov, Alexander"]
[Black "Praggnanandhaa R"]
[WhiteFideId "14109409"]
[BlackFideId "25059530"]
[WhiteElo "2685"]
[BlackElo "2599"]
[Result "1-0"]
[Round "11"]
[TimeControl "180+1"]
[Date "2021.10.19"]
[WhiteClock "0:00:08"]
[BlackClock "0:00:02"]

1. d4 {[%clk 0:03:00]}  Nf6 {[%clk 0:03:00]} 2. c4 {[%clk 0:03:00]}  Nc6 {[%clk 0:02:58]} 3. Nf3 {[%clk 0:02:59]}  e6 {[%clk 0:02:59]} 4. a3 {[%clk 0:02:58]}  g6 {[%clk 0:02:58]} 5. Nc3 {[%clk 0:02:58]}  Bg7 {[%clk 0:02:58]} 6. d5 {[%clk 0:02:55]}  Ne7 {[%clk 0:02:57]} 7. e4 {[%clk 0:02:55]}  d6 {[%clk 0:02:57]} 8. dxe6 {[%clk 0:02:56]}  Bxe6 {[%clk 0:02:56]} 9. Be2 {[%clk 0:02:54]}  O-O {[%clk 0:02:56]} 10. O-O {[%clk 0:02:53]}  c6 {[%clk 0:02:56]} 11. Nd4 {[%clk 0:02:48]}  Bc8 {[%clk 0:02:45]} 12. Bf4 {[%clk 0:02:41]}  h6 {[%clk 0:02:35]} 13. Qd2 {[%clk 0:02:31]}  g5 {[%clk 0:02:29]} 14. Be3 {[%clk 0:02:28]}  Ng6 {[%clk 0:02:28]} 15. Rad1 {[%clk 0:02:27]}  Re8 {[%clk 0:02:27]} 16. f3 {[%clk 0:02:27]}  Qe7 {[%clk 0:02:20]} 17. Rfe1 {[%clk 0:02:21]}  d5 {[%clk 0:02:18]} 18. cxd5 {[%clk 0:02:21]}  cxd5 {[%clk 0:02:17]} 19. Bb5 {[%clk 0:02:21]}  Rd8 {[%clk 0:02:12]} 20. Nf5 {[%clk 0:02:19]}  Bxf5 {[%clk 0:01:35]} 21. exf5 {[%clk 0:02:20]}  Nh4 {[%clk 0:01:31]} 22. Bb6 {[%clk 0:02:06]}  Qd6 {[%clk 0:01:31]} 23. Bxd8 {[%clk 0:02:05]}  Rxd8 {[%clk 0:01:31]} 24. Bd3 {[%clk 0:01:54]}  Nh5 {[%clk 0:01:13]} 25. Qf2 {[%clk 0:01:42]}  Nf4 {[%clk 0:01:11]} 26. Bf1 {[%clk 0:01:41]}  Nxf5 {[%clk 0:00:56]} 27. g3 {[%clk 0:01:31]}  Ne6 {[%clk 0:00:56]} 28. Nb5 {[%clk 0:00:55]}  Qd7 {[%clk 0:00:44]} 29. Bh3 {[%clk 0:00:50]}  Qxb5 {[%clk 0:00:38]} 30. Bxf5 {[%clk 0:00:50]}  Nf8 {[%clk 0:00:31]} 31. Kg2 {[%clk 0:00:46]}  Qxb2 {[%clk 0:00:28]} 32. Qxb2 {[%clk 0:00:43]}  Bxb2 {[%clk 0:00:29]} 33. a4 {[%clk 0:00:42]}  Ba3 {[%clk 0:00:26]} 34. Re5 {[%clk 0:00:35]}  d4 {[%clk 0:00:26]} 35. f4 {[%clk 0:00:34]}  gxf4 {[%clk 0:00:25]} 36. gxf4 {[%clk 0:00:35]}  b6 {[%clk 0:00:21]} 37. Kf3 {[%clk 0:00:33]}  Bc5 {[%clk 0:00:20]} 38. Rg1+ {[%clk 0:00:33]}  Kh8 {[%clk 0:00:20]} 39. Bd3 {[%clk 0:00:34]}  Nh7 {[%clk 0:00:14]} 40. Rh5 {[%clk 0:00:29]}  Rd6 {[%clk 0:00:14]} 41. a5 {[%clk 0:00:26]}  Nf8 {[%clk 0:00:10]} 42. a6 {[%clk 0:00:24]}  Rf6 {[%clk 0:00:09]} 43. Rf5 {[%clk 0:00:23]}  Nd7 {[%clk 0:00:06]} 44. Re1 {[%clk 0:00:18]}  Kg7 {[%clk 0:00:05]} 45. Re8 {[%clk 0:00:17]}  Bd6 {[%clk 0:00:04]} 46. Rxf6 {[%clk 0:00:16]}  Kxf6 {[%clk 0:00:04]} 47. Ra8 {[%clk 0:00:16]}  Nc5 {[%clk 0:00:04]} 48. Bb5 {[%clk 0:00:11]}  d3 {[%clk 0:00:04]} 49. Rxa7 {[%clk 0:00:11]}  d2 {[%clk 0:00:03]} 50. Be2 {[%clk 0:00:12]}  Nb3 {[%clk 0:00:03]} 51. Rd7 {[%clk 0:00:09]}  Nd4+ {[%clk 0:00:02]} 52. Ke4 {[%clk 0:00:07]}  Nxe2 {[%clk 0:00:02]} 53. Rxd6+ {[%clk 0:00:07]}  Ke7 {[%clk 0:00:02]} 54. Rxd2 {[%clk 0:00:08]}  Nc3+ {[%clk 0:00:01]} 55. Kf3 {[%clk 0:00:08]}  Nb5 {[%clk 0:00:01]} 56. Rb2 {[%clk 0:00:09]}  Nd4+ {[%clk 0:00:01]} 57. Ke4 {[%clk 0:00:08]}  Nc6 {[%clk 0:00:02]} 58. Rxb6 {[%clk 0:00:08]} 1-0


[Site "https://www.chess.com"]